fUST/lending_fUST_20260610
["ID","MTS","AMOUNT","RATE_DAILY","PERIOD"]
[424695172,1781057445000,-500.0,0.00020273,2]
[424695153,1781057445000,-1457.42,0.00020273,2]
[424695121,1781057445000,-1024.82,0.00020273,2]
[424695180,1781057445000,-500.0,0.00020273,2]
[424695117,1781057445000,-500.0,0.00020273,2]
[424695070,1781057445000,-842.57,0.00020273,2]
[424695065,1781057445000,-500.0,0.00020273,2]
[424695066,1781057445000,-500.0,0.00020273,2]
[424695068,1781057445000,-500.0,0.00020273,2]
[424695063,1781057445000,-500.0,0.00020273,2]
[424695072,1781057445000,-500.0,0.00020273,2]
[424695077,1781057445000,-500.0,0.00020273,2]
[424695083,1781057445000,-500.0,0.00020273,2]
[424695074,1781057445000,-500.0,0.00020273,2]
[424695076,1781057445000,-500.0,0.00020273,2]
[424695079,1781057445000,-500.0,0.00020273,2]
[424695081,1781057445000,-500.0,0.00020273,2]
[424695085,1781057445000,-1065.3,0.00020273,2]
[424695092,1781057445000,-500.0,0.00020273,2]
[424695091,1781057445000,-500.0,0.00020273,2]
[424695094,1781057445000,-668.06,0.00020273,2]
[424695107,1781057445000,-500.0,0.00020273,2]
[424695089,1781057445000,-500.0,0.00020273,2]
[424695100,1781057445000,-500.0,0.00020273,2]
[424695087,1781057445000,-500.0,0.00020273,2]
[424695109,1781057445000,-500.0,0.00020273,2]
[424695104,1781057445000,-159.53522892,0.00020273,2]
[424695102,1781057445000,-500.0,0.00020273,2]
[424695106,1781057445000,-500.0,0.00020273,2]
[424695096,1781057445000,-500.0,0.00020273,2]
[424695098,1781057445000,-500.0,0.00020273,2]
[424695111,1781057445000,-1239.06,0.00020273,2]
[424695113,1781057445000,-1875.71,0.00020273,2]
[424695115,1781057445000,-5775.81,0.00020273,2]
[424695125,1781057445000,-3539.53,0.00020273,2]
[424695178,1781057445000,-500.0,0.00020273,2]
[424695170,1781057445000,-500.0,0.00020273,2]
[424695181,1781057445000,-685.25,0.00020273,2]
[424695225,1781057445000,-500.0,0.00020547,2]
[424695227,1781057445000,-500.0,0.00020547,2]
[424695233,1781057445000,-275.05791711,0.00020547,2]
[424695231,1781057445000,-500.0,0.00020547,2]
[424695237,1781057445000,-500.0,0.00020547,2]
[424695239,1781057445000,-500.0,0.00020547,2]
[424695252,1781057445000,-500.0,0.00020547,2]
[424695257,1781057445000,-1304.0148,0.00020547,2]
[424695250,1781057445000,-500.0,0.00020547,2]
[424695253,1781057445000,-500.09,0.00020547,2]
[424695241,1781057445000,-633.84388969,0.00020547,2]
[424695255,1781057445000,-500.0,0.00020547,2]
[424695259,1781057445000,-512.56,0.00020547,2]
[424695242,1781057445000,-500.0,0.00020547,2]
[424695244,1781057445000,-500.0,0.00020547,2]
[424695261,1781057445000,-500.0,0.00020547,2]
[424695246,1781057445000,-653.09,0.00020547,2]
[424695248,1781057445000,-500.0,0.00020547,2]
[424695263,1781057445000,-500.0,0.00020547,2]
[424695264,1781057445000,-1015.85,0.00020547,2]
[424695266,1781057445000,-500.0,0.00020547,2]
[424695273,1781057445000,-500.0,0.00020547,2]
[424695268,1781057445000,-500.0,0.00020547,2]
[424695270,1781057445000,-500.0,0.00020547,2]
[424695271,1781057445000,-500.0,0.00020547,2]
[424695275,1781057445000,-516.19277758,0.00020547,2]
[424695277,1781057445000,-581.91,0.00020547,2]
[424695279,1781057445000,-856.14,0.00020547,2]
[424695175,1781057445000,-500.0,0.00020273,2]
[424695223,1781057445000,-500.0,0.00020547,2]
[424695235,1781057445000,-500.0,0.00020547,2]
[424695282,1781057445000,-500.0,0.00020547,2]
[424695215,1781057445000,-151.0,0.000205,3]
[424695185,1781057445000,-2464.15,0.00020273,2]
[424695191,1781057445000,-500.0,0.00020273,2]
[424695183,1781057445000,-281.10978397,0.00020273,2]
[424695193,1781057445000,-500.0,0.00020273,2]
[424695182,1781057445000,-5266.7,0.00020273,2]
[424695186,1781057445000,-500.0,0.00020273,2]
[424695184,1781057445000,-3468.03,0.00020273,2]
[424695189,1781057445000,-500.0,0.00020273,2]
[424695229,1781057445000,-500.0,0.00020547,2]
[424695190,1781057445000,-1000.39,0.00020273,2]
[424695192,1781057445000,-500.0,0.00020273,2]
[424695187,1781057445000,-264.59103908,0.00020273,2]
[424695195,1781057445000,-164.46,0.00020274,2]
[424695206,1781057445000,-160.0,0.00020405,2]
[424695188,1781057445000,-1160.83,0.00020273,2]
[424695210,1781057445000,-150.57,0.00020437,2]
[424695221,1781057445000,-500.0,0.00020547,2]
[424695208,1781057445000,-300.0,0.00020411,5]
[424695219,1781057445000,-500.0,0.00020547,2]
[424695217,1781057445000,-573.34,0.00020538,3]
[424695213,1781057445000,-151.0,0.000205,4]
[424695204,1781057445000,-151.0,0.000204,3]
[424695198,1781057445000,-151.0,0.000203,4]
[424695194,1781057445000,-500.0,0.00020273,2]
[424695201,1781057445000,-150.57,0.00020337,2]
[424695196,1781057445000,-174.16165972,0.00020281,7]
[424695200,1781057445000,-186.0,0.00020315,2]
[424695197,1781057445000,-150.57,0.00020287,2]
[424695212,1781057445000,-150.63012452,0.00020487,2]
[424695203,1781057445000,-150.57,0.00020387,2]
[424695362,1781057446000,-500.0,0.00020547,2]
[424695366,1781057446000,-500.0,0.00020547,2]
[424695355,1781057446000,-500.0,0.00020547,2]
[424695364,1781057446000,-500.0,0.00020547,2]
[424695357,1781057446000,-500.0,0.00020547,2]
[424695348,1781057446000,-500.0,0.00020547,2]
[424695358,1781057446000,-500.0,0.00020547,2]
[424695350,1781057446000,-500.0,0.00020547,2]
[424695353,1781057446000,-668.06,0.00020547,2]
[424695341,1781057446000,-500.0,0.00020547,2]
[424695351,1781057446000,-500.0,0.00020547,2]
[424695360,1781057446000,-500.0,0.00020547,2]
[424695368,1781057446000,-1239.06,0.00020547,2]
[424695393,1781057446000,-1678.21,0.00020547,2]
[424695369,1781057446000,-1875.71,0.00020547,2]
[424695373,1781057446000,-500.0,0.00020547,2]
[424695375,1781057446000,-1575.31,0.00020547,2]
[424695378,1781057446000,-500.0,0.00020547,2]
[424695386,1781057446000,-500.0,0.00020547,2]
[424695382,1781057446000,-2725.06,0.00020547,2]
[424695380,1781057446000,-3539.53,0.00020547,2]
[424695377,1781057446000,-1024.82,0.00020547,2]
[424695389,1781057446000,-22834.25,0.00020547,2]
[424695387,1781057446000,-500.0,0.00020547,2]
[424695384,1781057446000,-500.0,0.00020547,2]
[424695391,1781057446000,-500.0,0.00020547,2]
[424695346,1781057446000,-500.0,0.00020547,2]
[424695371,1781057446000,-5775.81,0.00020547,2]
[424695344,1781057446000,-1065.3,0.00020547,2]
[424695310,1781057446000,-500.0,0.00020547,2]
[424695339,1781057446000,-500.0,0.00020547,2]
[424695401,1781057446000,-2752.23,0.00020547,2]
[424695284,1781057446000,-500.0,0.00020547,2]
[424695286,1781057446000,-500.0,0.00020547,2]
[424695299,1781057446000,-500.0,0.00020547,2]
[424695305,1781057446000,-500.0,0.00020547,2]
[424695301,1781057446000,-515.20933593,0.00020547,2]
[424695304,1781057446000,-500.0,0.00020547,2]
[424695291,1781057446000,-500.0,0.00020547,2]
[424695293,1781057446000,-500.0,0.00020547,2]
[424695289,1781057446000,-1458.71,0.00020547,2]
[424695296,1781057446000,-500.0,0.00020547,2]
[424695307,1781057446000,-500.0,0.00020547,2]
[424695308,1781057446000,-500.0,0.00020547,2]
[424695342,1781057446000,-500.0,0.00020547,2]
[424695312,1781057446000,-500.0,0.00020547,2]
[424695315,1781057446000,-500.0,0.00020547,2]
[424695326,1781057446000,-500.0,0.00020547,2]
[424695324,1781057446000,-500.0,0.00020547,2]
[424695320,1781057446000,-500.0,0.00020547,2]
[424695318,1781057446000,-500.0,0.00020547,2]
[424695337,1781057446000,-500.0,0.00020547,2]
[424695322,1781057446000,-500.0,0.00020547,2]
[424695317,1781057446000,-500.0,0.00020547,2]
[424695328,1781057446000,-500.0,0.00020547,2]
[424695330,1781057446000,-842.57,0.00020547,2]
[424695333,1781057446000,-500.0,0.00020547,2]
[424695332,1781057446000,-500.0,0.00020547,2]
[424695335,1781057446000,-500.0,0.00020547,2]
[424695313,1781057446000,-500.0,0.00020547,2]
[424695400,1781057446000,-2212.19,0.00020547,2]
[424695395,1781057446000,-2006.93,0.00020547,2]
[424695485,1781057446000,-505.01925526,0.00020821,2]
[424695461,1781057446000,-151.0,0.000206,3]
[424695465,1781057446000,-174.735465,0.00020673,2]
[424695468,1781057446000,-492.644421,0.00020679,2]
[424695467,1781057446000,-198.389159,0.00020673,2]
[424695463,1781057446000,-229.055409,0.00020609,2]
[424695477,1781057446000,-151.0,0.000208,3]
[424695475,1781057446000,-334.50722573,0.00020753,2]
[424695472,1781057446000,-151.0,0.000207,4]
[424695474,1781057446000,-160.0,0.00020706,3]
[424695484,1781057446000,-500.0,0.00020821,2]
[424695489,1781057446000,-500.0,0.00020821,2]
[424695490,1781057446000,-500.0,0.00020821,2]
[424695492,1781057446000,-500.0,0.00020821,2]
[424695458,1781057446000,-500.0,0.00020547,2]
[424695496,1781057446000,-500.0,0.00020821,2]
[424695494,1781057446000,-500.0,0.00020821,2]
[424695487,1781057446000,-500.0,0.00020821,2]
[424695499,1781057446000,-500.0,0.00020821,2]
[424695501,1781057446000,-500.0,0.00020821,2]
[424695505,1781057446000,-653.09,0.00020821,2]
[424695503,1781057446000,-500.0,0.00020821,2]
[424695507,1781057446000,-500.0,0.00020821,2]
[424695509,1781057446000,-500.0,0.00020821,2]
[424695514,1781057446000,-500.0,0.00020821,2]
[424695511,1781057446000,-500.0,0.00020821,2]
[424695512,1781057446000,-500.09,0.00020821,2]
[424695516,1781057446000,-512.56,0.00020821,2]
[424695403,1781057446000,-500.0,0.00020547,2]
[424695498,1781057446000,-500.0,0.00020821,2]
[424695460,1781057446000,-164.46,0.00020548,2]
[424695470,1781057446000,-151.0,0.000207,3]
[424695456,1781057446000,-500.0,0.00020547,2]
[424695396,1781057446000,-692.66,0.00020547,2]
[424695405,1781057446000,-1457.42,0.00020547,2]
[424695398,1781057446000,-774.75,0.00020547,2]
[424695406,1781057446000,-500.0,0.00020547,2]
[424695408,1781057446000,-1418.25,0.00020547,2]
[424695410,1781057446000,-500.0,0.00020547,2]
[424695412,1781057446000,-500.0,0.00020547,2]
[424695413,1781057446000,-500.0,0.00020547,2]
[424695417,1781057446000,-815.92,0.00020547,2]
[424695454,1781057446000,-500.0,0.00020547,2]
[424695439,1781057446000,-5266.7,0.00020547,2]
[424695423,1781057446000,-500.0,0.00020547,2]
[424695421,1781057446000,-500.0,0.00020547,2]
[424695419,1781057446000,-3940.9,0.00020547,2]
[424695425,1781057446000,-5140.93,0.00020547,2]
[424695415,1781057446000,-4734.28,0.00020547,2]
[424695452,1781057446000,-1000.39,0.00020547,2]
[424695428,1781057446000,-1305.98,0.00020547,2]
[424695432,1781057446000,-500.0,0.00020547,2]
[424695426,1781057446000,-291.43497859,0.00020547,2]
[424695437,1781057446000,-685.25,0.00020547,2]
[424695430,1781057446000,-205.18352915,0.00020547,2]
[424695434,1781057446000,-1501.36,0.00020547,2]
[424695442,1781057446000,-2464.15,0.00020547,2]
[424695441,1781057446000,-3468.03,0.00020547,2]
[424695444,1781057446000,-500.0,0.00020547,2]
[424695446,1781057446000,-770.06660908,0.00020547,2]
[424695450,1781057446000,-500.0,0.00020547,2]
[424695449,1781057446000,-390.76339092,0.00020547,2]
[424695435,1781057446000,-500.0,0.00020547,2]
[424695596,1781057447000,-500.0,0.00020821,2]
[424695599,1781057447000,-500.0,0.00020821,2]
[424695598,1781057447000,-500.0,0.00020821,2]
[424695594,1781057447000,-500.0,0.00020821,2]
[424695601,1781057447000,-668.06,0.00020821,2]
[424695592,1781057447000,-1065.3,0.00020821,2]
[424695591,1781057447000,-500.0,0.00020821,2]
[424695585,1781057447000,-500.0,0.00020821,2]
[424695583,1781057447000,-500.0,0.00020821,2]
[424695582,1781057447000,-199.68586178,0.00020821,2]
[424695580,1781057447000,-500.0,0.00020821,2]
[424695589,1781057447000,-363.85644756,0.00020821,2]
[424695603,1781057447000,-500.0,0.00020821,2]
[424695587,1781057447000,-500.0,0.00020821,2]
[424695609,1781057447000,-500.0,0.00020821,2]
[424695631,1781057447000,-500.0,0.00020821,2]
[424695607,1781057447000,-600.0,0.00020821,2]
[424695605,1781057447000,-483.14975751,0.00020821,2]
[424695616,1781057447000,-1239.06,0.00020821,2]
[424695612,1781057447000,-500.0,0.00020821,2]
[424695614,1781057447000,-292.79555001,0.00020821,2]
[424695617,1781057447000,-1875.71,0.00020821,2]
[424695621,1781057447000,-500.0,0.00020821,2]
[424695619,1781057447000,-5775.81,0.00020821,2]
[424695629,1781057447000,-2725.06,0.00020821,2]
[424695627,1781057447000,-3539.53,0.00020821,2]
[424695622,1781057447000,-1575.31,0.00020821,2]
[424695624,1781057447000,-1024.82,0.00020821,2]
[424695626,1781057447000,-500.0,0.00020821,2]
[424695578,1781057447000,-842.57,0.00020821,2]
[424695610,1781057447000,-500.0,0.00020821,2]
[424695572,1781057447000,-500.0,0.00020821,2]
[424695521,1781057447000,-500.0,0.00020821,2]
[424695575,1781057447000,-500.0,0.00020821,2]
[424695523,1781057447000,-1015.85,0.00020821,2]
[424695517,1781057447000,-1304.0148,0.00020821,2]
[424695519,1781057447000,-500.0,0.00020821,2]
[424695526,1781057447000,-500.0,0.00020821,2]
[424695528,1781057447000,-500.0,0.00020821,2]
[424695531,1781057447000,-500.0,0.00020821,2]
[424695534,1781057447000,-581.91,0.00020821,2]
[424695530,1781057447000,-500.0,0.00020821,2]
[424695525,1781057447000,-500.0,0.00020821,2]
[424695535,1781057447000,-856.14,0.00020821,2]
[424695537,1781057447000,-500.0,0.00020821,2]
[424695543,1781057447000,-1458.71,0.00020821,2]
[424695541,1781057447000,-500.0,0.00020821,2]
[424695539,1781057447000,-500.0,0.00020821,2]
[424695549,1781057447000,-500.0,0.00020821,2]
[424695550,1781057447000,-500.0,0.00020821,2]
[424695552,1781057447000,-500.0,0.00020821,2]
[424695554,1781057447000,-500.0,0.00020821,2]
[424695556,1781057447000,-500.0,0.00020821,2]
[424695547,1781057447000,-500.0,0.00020821,2]
[424695560,1781057447000,-500.0,0.00020821,2]
[424695558,1781057447000,-500.0,0.00020821,2]
[424695561,1781057447000,-500.0,0.00020821,2]
[424695563,1781057447000,-500.0,0.00020821,2]
[424695566,1781057447000,-500.0,0.00020821,2]
[424695565,1781057447000,-500.0,0.00020821,2]
[424695568,1781057447000,-500.0,0.00020821,2]
[424695570,1781057447000,-500.0,0.00020821,2]
[424695574,1781057447000,-500.0,0.00020821,2]
[424695577,1781057447000,-500.0,0.00020821,2]
[424695635,1781057447000,-500.0,0.00020821,2]
[424695545,1781057447000,-500.0,0.00020821,2]
[424695633,1781057447000,-500.0,0.00020821,2]
[424695708,1781057447000,-331.919875,0.00020942,2]
[424695701,1781057447000,-164.46,0.00020822,2]
[424695694,1781057447000,-1000.39,0.00020821,2]
[424695690,1781057447000,-1160.83,0.00020821,2]
[424695692,1781057447000,-500.0,0.00020821,2]
[424695697,1781057447000,-500.0,0.00020821,2]
[424695696,1781057447000,-500.0,0.00020821,2]
[424695699,1781057447000,-500.0,0.00020821,2]
[424695715,1781057447000,-151.0,0.00021,4]
[424695713,1781057447000,-188.89819806,0.00020986,7]
[424695717,1781057447000,-3000.0,0.00021,2]
[424695719,1781057447000,-151.0,0.00021,4]
[424695721,1781057447000,-3000.0,0.0002101,2]
[424695734,1781057447000,-3000.0,0.0002108,2]
[424695704,1781057447000,-805.32494023,0.00020892,2]
[424695732,1781057447000,-3000.0,0.0002107,2]
[424695753,1781057447000,-393.03957927,0.00021095,2]
[424695723,1781057447000,-3000.0,0.0002102,2]
[424695738,1781057447000,-3000.0,0.0002109,2]
[424695736,1781057447000,-156.0,0.00021082,2]
[424695728,1781057447000,-3000.0,0.0002105,2]
[424695730,1781057447000,-3000.0,0.0002106,2]
[424695742,1781057447000,-500.0,0.00021095,2]
[424695744,1781057447000,-213.91103586,0.00021095,2]
[424695747,1781057447000,-500.0,0.00021095,2]
[424695749,1781057447000,-468.62004596,0.00021095,2]
[424695745,1781057447000,-500.0,0.00021095,2]
[424695740,1781057447000,-537.94,0.00021095,2]
[424695751,1781057447000,-500.0,0.00021095,2]
[424695638,1781057447000,-500.0,0.00020821,2]
[424695725,1781057447000,-3000.0,0.0002103,2]
[424695711,1781057447000,-198.389158,0.00020942,2]
[424695727,1781057447000,-3000.0,0.0002104,2]
[424695706,1781057447000,-186.82319155,0.00020909,7]
[424695710,1781057447000,-503.83975,0.00020942,2]
[424695636,1781057447000,-22834.25,0.00020821,2]
[424695640,1781057447000,-1678.21,0.00020821,2]
[424695642,1781057447000,-2006.93,0.00020821,2]
[424695643,1781057447000,-692.66,0.00020821,2]
[424695649,1781057447000,-2752.23,0.00020821,2]
[424695647,1781057447000,-2212.19,0.00020821,2]
[424695650,1781057447000,-500.0,0.00020821,2]
[424695663,1781057447000,-4734.28,0.00020821,2]
[424695661,1781057447000,-500.0,0.00020821,2]
[424695652,1781057447000,-1457.42,0.00020821,2]
[424695654,1781057447000,-500.0,0.00020821,2]
[424695656,1781057447000,-1418.25,0.00020821,2]
[424695659,1781057447000,-500.0,0.00020821,2]
[424695657,1781057447000,-500.0,0.00020821,2]
[424695645,1781057447000,-774.75,0.00020821,2]
[424695666,1781057447000,-3940.9,0.00020821,2]
[424695664,1781057447000,-815.92,0.00020821,2]
[424695689,1781057447000,-500.0,0.00020821,2]
[424695687,1781057447000,-2464.15,0.00020821,2]
[424695702,1781057447000,-800.0,0.00020878,2]
[424695677,1781057447000,-1501.36,0.00020821,2]
[424695675,1781057447000,-500.0,0.00020821,2]
[424695685,1781057447000,-3468.03,0.00020821,2]
[424695681,1781057447000,-685.25,0.00020821,2]
[424695683,1781057447000,-5266.7,0.00020821,2]
[424695672,1781057447000,-5140.93,0.00020821,2]
[424695670,1781057447000,-500.0,0.00020821,2]
[424695673,1781057447000,-1305.98,0.00020821,2]
[424695668,1781057447000,-500.0,0.00020821,2]
[424695679,1781057447000,-500.0,0.00020821,2]
[424695811,1781057448000,-500.0,0.00021095,2]
[424695816,1781057448000,-500.0,0.00021095,2]
[424695818,1781057448000,-500.0,0.00021095,2]
[424695820,1781057448000,-500.0,0.00021095,2]
[424695832,1781057448000,-500.0,0.00021095,2]
[424695825,1781057448000,-500.0,0.00021095,2]
[424695830,1781057448000,-500.0,0.00021095,2]
[424695823,1781057448000,-500.0,0.00021095,2]
[424695827,1781057448000,-500.0,0.00021095,2]
[424695834,1781057448000,-500.0,0.00021095,2]
[424695850,1781057448000,-186.93177341,0.00021095,2]
[424695837,1781057448000,-500.0,0.00021095,2]
[424695839,1781057448000,-500.0,0.00021095,2]
[424695844,1781057448000,-500.0,0.00021095,2]
[424695846,1781057448000,-500.0,0.00021095,2]
[424695855,1781057448000,-500.0,0.00021095,2]
[424695848,1781057448000,-500.0,0.00021095,2]
[424695852,1781057448000,-842.57,0.00021095,2]
[424695857,1781057448000,-500.0,0.00021095,2]
[424695804,1781057448000,-500.0,0.00021095,2]
[424695859,1781057448000,-500.0,0.00021095,2]
[424695841,1781057448000,-500.0,0.00021095,2]
[424695809,1781057448000,-500.0,0.00021095,2]
[424695766,1781057448000,-500.09,0.00021095,2]
[424695814,1781057448000,-500.0,0.00021095,2]
[424695862,1781057448000,-500.0,0.00021095,2]
[424695760,1781057448000,-500.0,0.00021095,2]
[424695762,1781057448000,-503.09592224,0.00021095,2]
[424695764,1781057448000,-500.0,0.00021095,2]
[424695755,1781057448000,-500.0,0.00021095,2]
[424695758,1781057448000,-653.09,0.00021095,2]
[424695756,1781057448000,-368.98189877,0.00021095,2]
[424695771,1781057448000,-512.56,0.00021095,2]
[424695768,1781057448000,-500.0,0.00021095,2]
[424695774,1781057448000,-729.8375,0.00021095,2]
[424695807,1781057448000,-1458.71,0.00021095,2]
[424695776,1781057448000,-500.0,0.00021095,2]
[424695779,1781057448000,-500.0,0.00021095,2]
[424695784,1781057448000,-500.0,0.00021095,2]
[424695796,1781057448000,-581.91,0.00021095,2]
[424695800,1781057448000,-500.0,0.00021095,2]
[424695789,1781057448000,-500.0,0.00021095,2]
[424695786,1781057448000,-500.0,0.00021095,2]
[424695798,1781057448000,-856.14,0.00021095,2]
[424695791,1781057448000,-500.0,0.00021095,2]
[424695793,1781057448000,-500.0,0.00021095,2]
[424695802,1781057448000,-500.0,0.00021095,2]
[424695782,1781057448000,-1015.85,0.00021095,2]
[424695864,1781057448000,-500.0,0.00021095,2]
[424695871,1781057448000,-500.0,0.00021095,2]
[424695944,1781057448000,-3940.9,0.00021095,2]
[424695917,1781057448000,-2006.93,0.00021095,2]
[424695926,1781057448000,-500.0,0.00021095,2]
[424695909,1781057448000,-500.0,0.00021095,2]
[424695907,1781057448000,-500.0,0.00021095,2]
[424695934,1781057448000,-500.0,0.00021095,2]
[424695936,1781057448000,-500.0,0.00021095,2]
[424695938,1781057448000,-500.0,0.00021095,2]
[424695940,1781057448000,-4734.28,0.00021095,2]
[424695950,1781057448000,-5140.93,0.00021095,2]
[424695945,1781057448000,-500.0,0.00021095,2]
[424695932,1781057448000,-1418.25,0.00021095,2]
[424695942,1781057448000,-815.92,0.00021095,2]
[424695948,1781057448000,-500.0,0.00021095,2]
[424695954,1781057448000,-500.0,0.00021095,2]
[424695952,1781057448000,-1305.98,0.00021095,2]
[424695956,1781057448000,-1501.36,0.00021095,2]
[424695958,1781057448000,-500.0,0.00021095,2]
[424695960,1781057448000,-5266.7,0.00021095,2]
[424695962,1781057448000,-685.25,0.00021095,2]
[424695965,1781057448000,-2464.15,0.00021095,2]
[424695868,1781057448000,-500.0,0.00021095,2]
[424695919,1781057448000,-692.66,0.00021095,2]
[424695921,1781057448000,-774.75,0.00021095,2]
[424695930,1781057448000,-500.0,0.00021095,2]
[424695925,1781057448000,-2752.23,0.00021095,2]
[424695866,1781057448000,-1065.3,0.00021095,2]
[424695873,1781057448000,-500.0,0.00021095,2]
[424695875,1781057448000,-500.0,0.00021095,2]
[424695881,1781057448000,-222.95954955,0.00021095,2]
[424695879,1781057448000,-500.0,0.00021095,2]
[424695928,1781057448000,-1457.42,0.00021095,2]
[424695884,1781057448000,-500.0,0.00021095,2]
[424695893,1781057448000,-500.0,0.00021095,2]
[424695892,1781057448000,-5775.81,0.00021095,2]
[424695890,1781057448000,-1875.71,0.00021095,2]
[424695899,1781057448000,-500.0,0.00021095,2]
[424695877,1781057448000,-668.06,0.00021095,2]
[424695903,1781057448000,-2725.06,0.00021095,2]
[424695923,1781057448000,-2212.19,0.00021095,2]
[424695897,1781057448000,-1024.82,0.00021095,2]
[424695915,1781057448000,-1678.21,0.00021095,2]
[424695913,1781057448000,-500.0,0.00021095,2]
[424695911,1781057448000,-22834.25,0.00021095,2]
[424695901,1781057448000,-3539.53,0.00021095,2]
[424695963,1781057448000,-3468.03,0.00021095,2]
[424695905,1781057448000,-500.0,0.00021095,2]
[424695888,1781057448000,-1239.06,0.00021095,2]
[424695896,1781057448000,-1575.31,0.00021095,2]
[424695886,1781057448000,-500.0,0.00021095,2]
[424696046,1781057449000,-500.0,0.00021369,2]
[424696041,1781057449000,-500.0,0.00021369,2]
[424696042,1781057449000,-500.0,0.00021369,2]
[424696044,1781057449000,-500.0,0.00021369,2]
[424696029,1781057449000,-526.14,0.00021369,2]
[424696037,1781057449000,-1015.85,0.00021369,2]
[424696056,1781057449000,-500.0,0.00021369,2]
[424696035,1781057449000,-500.0,0.00021369,2]
[424696048,1781057449000,-581.91,0.00021369,2]
[424696052,1781057449000,-500.0,0.00021369,2]
[424696033,1781057449000,-500.0,0.00021369,2]
[424696050,1781057449000,-856.14,0.00021369,2]
[424696039,1781057449000,-500.0,0.00021369,2]
[424696031,1781057449000,-512.56,0.00021369,2]
[424696085,1781057449000,-500.0,0.00021369,2]
[424696058,1781057449000,-1458.71,0.00021369,2]
[424696062,1781057449000,-500.0,0.00021369,2]
[424696066,1781057449000,-500.0,0.00021369,2]
[424696054,1781057449000,-500.0,0.00021369,2]
[424696064,1781057449000,-500.0,0.00021369,2]
[424696069,1781057449000,-500.0,0.00021369,2]
[424696071,1781057449000,-1178.2943,0.00021369,2]
[424696067,1781057449000,-500.0,0.00021369,2]
[424696073,1781057449000,-500.0,0.00021369,2]
[424696077,1781057449000,-500.0,0.00021369,2]
[424696075,1781057449000,-500.0,0.00021369,2]
[424696081,1781057449000,-500.0,0.00021369,2]
[424696079,1781057449000,-500.0,0.00021369,2]
[424696028,1781057449000,-500.09,0.00021369,2]
[424696060,1781057449000,-500.0,0.00021369,2]
[424696026,1781057449000,-500.0,0.00021369,2]
[424695982,1781057449000,-160.0,0.00021099,4]
[424696018,1781057449000,-503.54324096,0.00021369,2]
[424695970,1781057449000,-500.0,0.00021095,2]
[424695976,1781057449000,-500.0,0.00021095,2]
[424695978,1781057449000,-500.0,0.00021095,2]
[424695967,1781057449000,-500.0,0.00021095,2]
[424695969,1781057449000,-1160.83,0.00021095,2]
[424695974,1781057449000,-500.0,0.00021095,2]
[424695972,1781057449000,-1000.39,0.00021095,2]
[424695983,1781057449000,-3000.0,0.000211,2]
[424695999,1781057449000,-244.68376556,0.00021165,7]